fUSD/lending_fUSD_20250806
["ID","MTS","AMOUNT","RATE_DAILY","PERIOD"]
[377612674,1754453472214,-2587.3,0.0003589,14]
[377612675,1754453472224,-1200.68,0.0003589,14]
[377612676,1754453472237,-1886.7,0.0003589,14]
[377612677,1754453472247,-2078.26,0.0003589,14]
[377612678,1754453472258,-400.0,0.0003589,14]
[377612679,1754453472272,-424.18,0.0003589,14]
[377612680,1754453472282,-1785.63,0.0003589,14]
[377612681,1754453472291,-333.11202,0.0003589,14]
[377612682,1754453472302,-876.27,0.0003589,14]
[377612683,1754453472312,-2700.93,0.0003589,14]
[377612684,1754453472322,-400.0,0.0003589,14]
[377612685,1754453472332,-400.0,0.0003589,14]
[377612686,1754453472342,-1574.43,0.0003589,14]
[377612687,1754453472352,-400.0,0.0003589,14]
[377612688,1754453472362,-400.0,0.0003589,14]
[377612689,1754453472372,-274.03032165,0.0003589,14]
[377612690,1754453472381,-915.1,0.0003589,14]
[377612691,1754453472391,-400.0,0.0003589,14]
[377612692,1754453472401,-926.82,0.0003589,14]
[377612693,1754453472410,-788.05,0.0003589,14]
[377612694,1754453472420,-1211.69,0.0003589,14]
[377612695,1754453472430,-953.17,0.0003589,14]
[377612696,1754453472440,-810.7,0.0003589,14]
[377612697,1754453472451,-1096.99,0.0003589,14]
[377612698,1754453472460,-739.62,0.0003589,14]
[377612699,1754453472470,-400.0,0.0003589,14]
[377612700,1754453472480,-400.0,0.0003589,14]
[377612701,1754453472490,-400.0,0.0003589,14]
[377612702,1754453472500,-1356.85,0.0003589,14]
[377612703,1754453472510,-400.0,0.0003589,14]
[377612704,1754453472520,-1164.534129,0.0003589,14]
[377612705,1754453472529,-715.88,0.0003589,14]
[377612706,1754453472539,-969.08,0.0003589,14]
[377612707,1754453472549,-1264.9,0.0003589,14]
[377612708,1754453472559,-400.0,0.0003589,14]
[377612709,1754453472571,-1804.39,0.0003589,14]
[377612710,1754453472583,-401.43,0.0003589,14]
[377612711,1754453472594,-400.0,0.0003589,14]
[377612712,1754453472604,-400.0,0.0003589,14]
[377612713,1754453472614,-1030.11,0.0003589,14]
[377612714,1754453472625,-595.81,0.0003589,14]
[377612715,1754453472635,-1807.69,0.0003589,14]
[377612716,1754453472646,-2074.67,0.0003589,14]
[377612717,1754453472656,-599.55,0.0003589,14]
[377612718,1754453472666,-1651.3,0.0003589,14]
[377612719,1754453472676,-2525.39,0.0003589,14]
[377612720,1754453472687,-931.250526,0.0003589,14]
[377612721,1754453472699,-1399.63,0.0003589,14]
[377612722,1754453472710,-400.0,0.0003589,14]
[377612723,1754453472720,-400.0,0.0003589,14]
[377612724,1754453472731,-1312.72,0.0003589,14]
[377612725,1754453472742,-400.0,0.0003589,14]
[377612726,1754453472752,-1289.453255,0.0003589,14]
[377612727,1754453472763,-2219.55,0.0003589,14]
[377612728,1754453472778,-400.0,0.0003589,14]
[377612729,1754453472788,-400.0,0.0003589,14]
[377612730,1754453472798,-400.0,0.0003589,14]
[377612731,1754453472808,-2038.93,0.0003589,14]
[377612732,1754453472817,-3131.7,0.0003589,14]
[377612733,1754453472827,-1949.62,0.0003589,14]
[377612734,1754453472836,-1122.66,0.0003589,14]
[377612735,1754453472846,-899.51,0.0003589,14]
[377612736,1754453472855,-400.0,0.0003589,14]
[377612737,1754453472865,-1391.92,0.0003589,14]
[377612738,1754453472874,-400.0,0.0003589,14]
[377612739,1754453472884,-706.61,0.0003589,14]
[377612740,1754453472894,-400.0,0.0003589,14]
[377612741,1754453472903,-186.764188,0.0003589,14]
[377612742,1754453472913,-582.67,0.0003589,14]
[377612743,1754453472923,-400.0,0.0003589,14]
[377612744,1754453472932,-2352.08,0.0003589,14]
[377612745,1754453472942,-2817.34,0.0003589,14]
[377612746,1754453472951,-1393.69,0.0003589,14]
[377612747,1754453472961,-11625.27,0.0003589,14]
[377612748,1754453472971,-400.0,0.0003589,14]
[377612749,1754453472982,-1440.79,0.0003589,14]
[377612750,1754453472993,-413.75,0.0003589,14]
[377612751,1754453473003,-400.0,0.0003589,14]
[377612752,1754453473019,-2563.97,0.0003589,14]
[377612753,1754453473031,-1862.54,0.0003589,14]
[377612754,1754453473043,-1944.29,0.0003589,14]
[377612755,1754453473053,-1909.34,0.0003589,14]
[377612756,1754453473063,-1016.51,0.0003589,14]
[377612757,1754453473072,-2811.95,0.0003589,14]
[377612758,1754453473082,-3630.73,0.0003589,14]
[377612759,1754453473092,-1793.27,0.0003589,14]
[377612760,1754453473102,-400.0,0.0003589,14]
[377612761,1754453473112,-400.0,0.0003589,14]
[377612762,1754453473122,-400.0,0.0003589,14]
[377612763,1754453473132,-549.86,0.0003589,14]
[377612764,1754453473142,-400.0,0.0003589,2]
[377612765,1754453473152,-400.0,0.0003589,14]
[377612766,1754453473161,-2281.24,0.0003589,14]
[377612767,1754453473171,-419.17,0.0003589,14]
[377612768,1754453473181,-400.0,0.0003589,14]
[377612769,1754453473192,-919.34,0.0003589,14]
[377612770,1754453473202,-400.0,0.0003589,14]
[377612771,1754453473212,-400.0,0.0003589,14]
[377612772,1754453473222,-400.0,0.0003589,14]
[377612773,1754453473231,-1264.07,0.0003589,14]
[377612774,1754453473241,-185.37470394,0.0003589,2]
[377612775,1754453473251,-263.78641323,0.00035907,2]
[377612776,1754453473261,-845.01572128,0.00035915,2]
[377612777,1754453473274,-155.37397305,0.00035949,15]
[377612778,1754453473284,-3444.49,0.00036,2]
[377612779,1754453473294,-250.50885186,0.00036009,2]
[377612780,1754453473304,-158.15980875,0.00036064,8]
[377612781,1754453473316,-374.47579526,0.00036064,2]
[377612782,1754453473325,-192.88872049,0.00036064,2]
[377612783,1754453473336,-150.0,0.000361,2]
[377612784,1754453473346,-278.10964,0.000361,20]
[377612785,1754453473356,-263.78641323,0.00036103,2]
[377612786,1754453473366,-150.0,0.00036116,3]
[377612787,1754453473376,-150.0,0.00036137,7]
[377612788,1754453473386,-150.0,0.00036137,7]
[377612789,1754453473396,-150.0,0.00036137,7]
[377612790,1754453473406,-150.0,0.00036137,7]
[377612791,1754453473415,-150.0,0.00036137,7]
[377612792,1754453473426,-150.0,0.00036137,7]
[377612793,1754453473436,-500.0,0.00036153,14]
[377612794,1754453473445,-151.0,0.00036162,14]
[377612795,1754453473456,-151.0,0.00036162,14]
[377612796,1754453473465,-151.0,0.00036162,14]
[377612797,1754453473475,-151.0,0.00036162,14]
[377612798,1754453473762,-151.0,0.00036162,14]
[377612799,1754453473773,-151.0,0.00036162,14]
[377612800,1754453473783,-151.0,0.00036162,14]
[377612801,1754453473794,-188.02945523,0.00036162,14]
[377612802,1754453473805,-600.0,0.00036162,14]
[377612803,1754453473816,-600.0,0.00036162,14]
[377612804,1754453473827,-600.0,0.00036162,14]
[377612805,1754453473837,-600.0,0.00036162,14]
[377612806,1754453473848,-600.0,0.00036162,14]
[377612807,1754453473857,-600.0,0.00036162,14]
[377612808,1754453473867,-328.06587471,0.00036162,14]
[377612809,1754453473876,-561.79365236,0.00036162,14]
[377612810,1754453473886,-400.0,0.00036163,14]
[377612811,1754453473895,-400.0,0.00036163,14]
[377612812,1754453473904,-400.0,0.00036163,14]
[377612813,1754453473914,-400.0,0.00036163,2]
[377612814,1754453473923,-400.0,0.00036163,14]
[377612815,1754453473933,-400.0,0.00036163,14]
[377612816,1754453473942,-400.0,0.00036163,14]
[377612817,1754453473951,-500.0,0.00036163,14]
[377612818,1754453473963,-500.0,0.00036163,14]
[377612819,1754453473974,-500.0,0.00036163,14]
[377612820,1754453473983,-500.0,0.00036163,14]
[377612821,1754453473994,-500.0,0.00036163,14]
[377612822,1754453474005,-268.92337573,0.00036163,14]
[377612823,1754453474015,-2239.54,0.00036163,14]
[377612824,1754453474024,-400.0,0.00036163,14]
[377612825,1754453474034,-676.64,0.00036163,14]
[377612826,1754453474044,-2628.54,0.00036163,14]
[377612827,1754453474054,-5234.7993008,0.00036164,21]
[377612828,1754453474064,-74774.72162851,0.00036164,2]
[377612829,1754453475047,-667.97242595,0.00036164,2]
[377612830,1754453476722,-150.0,0.00028554,3]
[377612831,1754453476732,-300.0,0.00030794,3]
[377612832,1754453476742,-273.83279533,0.00032156,2]
[377612833,1754453476758,-555.16720467,0.00032156,2]
[377612834,1754453476767,-829.0,0.00035156,2]
[377612835,1754453476778,-150.0,0.00035615,3]
[377612836,1754453476789,-400.0,0.00035616,14]
[377612837,1754453476800,-400.0,0.00035616,14]
[377612838,1754453476811,-400.0,0.00035616,14]
[377612839,1754453476820,-948.86,0.00035616,14]
[377612840,1754453476830,-850.95,0.00035616,14]
[377612841,1754453476840,-1231.84,0.00035616,14]
[377612842,1754453476850,-409.27,0.00035616,14]
[377612843,1754453476859,-400.0,0.0003589,14]
[377612844,1754453476868,-242.10771365,0.0003589,14]
[377612845,1754453476879,-706.75228635,0.0003589,14]
[377612846,1754453476888,-400.0,0.0003589,14]
[377612847,1754453476898,-850.95,0.0003589,14]
[377612848,1754453476907,-409.27,0.0003589,14]
[377612849,1754453476916,-1231.84,0.0003589,14]
[377612850,1754453476927,-2799.80943007,0.00036164,2]
[377612851,1754453476936,-16874.97836358,0.00036164,2]
[377612852,1754453495645,-151.0,0.00017566,2]
[377612853,1754453499435,-181.76560847,0.00017566,2]
[377612854,1754453503665,-157.24,0.00017566,2]
[377612855,1754453505188,-384.41185097,0.00017566,2]
[377612857,1754453507394,238.06,0.00013699,2]
[377612858,1754453510108,-159.49749142,0.00017566,2]
[377612859,1754453513640,-186.50044592,0.00017566,2]
[377612860,1754453517915,-154.92800686,0.00017566,2]
[377612861,1754453521274,-185.733,0.00017566,2]
[377612862,1754453524154,-258.96369212,0.00017565,2]
[377612863,1754453527070,-41.03630788,0.00017565,2]
[377612864,1754453527091,-219.01180287,0.00017565,2]
[377612865,1754453529730,-181.56924,0.00017565,2]
[377612866,1754453531336,-149.41895713,0.00017565,2]
[377612867,1754453531360,-24.73751449,0.00017566,2]
[377612868,1754453532938,-193.38070165,0.00017566,2]
[377612869,1754453535152,-166.47909726,0.00017566,2]
[377612870,1754453536893,-54.32628296,0.00017566,2]
[377612871,1754453536914,-282.47745944,0.00017566,2]
[377612872,1754453543666,-447.1,0.00017566,2]
[377612873,1754453545683,-394.70975797,0.00017566,2]
[377612874,1754453548413,-266.37101299,0.00017566,2]
[377612875,1754453551215,-181.56922904,0.00017566,2]
[377612876,1754453554586,-257.83031315,0.00017566,2]
[377612877,1754453556291,-169.94222741,0.00017566,2]
[377612878,1754453556316,-301.90096494,0.00017566,2]
[377612879,1754453558942,-182.75912959,0.00017566,2]
[377612880,1754453561420,-307.39,0.00017566,2]
[377612881,1754453563848,-213.72965048,0.00017566,2]
[377612882,1754453566112,-158.94290462,0.00017566,2]
[377612883,1754453568406,-189.8720301,0.00017566,2]
[377612884,1754453569967,-179.57507455,0.00017566,2]
[377612885,1754453573783,-199.61820549,0.00017566,2]
[377612886,1754453578034,-266.21204023,0.00017566,2]
[377612887,1754453578058,-22.00435215,0.00017566,2]
[377612888,1754453580375,-303.34032758,0.00017566,2]
[377612889,1754453584481,-231.40839152,0.00017566,2]
[377612890,1754453588413,-199.4326437,0.00017566,2]
[377612891,1754453593576,-174.19223922,0.00017566,2]
[377612892,1754453595899,-526.62690478,0.00017566,2]
[377612893,1754453599965,-273.94045152,0.00017566,2]
[377612894,1754453601715,-269.05468953,0.00017566,2]
[377612895,1754453601739,-230.94531047,0.00017566,2]
[377612896,1754453604431,-209.61055063,0.00017566,2]
[377612897,1754453606811,-206.58695392,0.00017566,2]
[377612898,1754453609660,-367.01075338,0.00017566,2]
[377612899,1754453611900,20000.0,0.00030137,120]
[377612900,1754453612744,-170.3541505,0.00017566,2]
[377612901,1754453616093,-330.20155102,0.00017566,2]
[377612902,1754453618190,-151.85780682,0.00017566,2]
[377612903,1754453620357,-171.38739838,0.00017566,2]
[377612904,1754453623472,-162.04552488,0.00017566,2]
[377612905,1754453623496,-18.63672629,0.00017566,2]
[377612906,1754453627926,-300.0,0.00017566,2]
[377612907,1754453629280,-405.98786895,0.00017566,2]
[377612908,1754453632747,-160.68507157,0.00017566,2]
[377612909,1754453634518,-167.85789792,0.00017566,2]
[377612910,1754453637418,-165.31878186,0.00017566,2]
[377612911,1754453640952,-163.25818806,0.00017566,2]
[377612912,1754453642186,-225.57595904,0.00017565,2]
[377612913,1754453645449,-74.42404096,0.00017565,2]
[377612914,1754453645473,-215.6860044,0.00017566,2]
[377612915,1754453650134,-200.30485714,0.00017566,2]
[377612916,1754453652985,-202.26460381,0.00017566,2]
[377612917,1754453653010,-97.73539619,0.00017566,2]
[377612918,1754453655099,-190.66288933,0.00017566,2]
[377612919,1754453660613,-218.80801417,0.00017566,2]
[377612920,1754453661727,-267.79926152,0.00017566,2]
[377612921,1754453664040,-325.33741881,0.00017566,2]
[377612922,1754453668298,-284.33995405,0.00017566,2]
[377612923,1754453672979,-172.81598314,0.00017566,2]
[377612924,1754453675187,-219.40067205,0.00017566,2]
[377612925,1754453677992,-160.0,0.00017566,2]
[377612926,1754453680966,-63.10041074,0.00017566,2]
[377612927,1754453680992,-147.08220148,0.00017566,2]
[377612928,1754453682326,-213.04692685,0.00017466,2]
[377612929,1754453685623,-74.09533889,0.00017466,2]
[377612930,1754453685648,-88.58485036,0.00017566,2]
[377612931,1754453687903,-330.42355802,0.00017566,2]
[377612932,1754453690089,-258.65032496,0.00017566,2]
[377612933,1754453694439,-462.0527071,0.00017566,2]
[377612934,1754453700566,-190.5290965,0.00017566,2]
[377612935,1754453702727,-204.72645135,0.00017565,2]
[377612936,1754453705869,-337.47229984,0.00017565,2]
[377612937,1754453709111,-156.87395804,0.00017565,2]
[377612938,1754453713377,-177.18401686,0.00017565,2]
[377612939,1754453715757,-217.03559139,0.00017565,2]
[377612940,1754453720897,-106.70768252,0.00017565,2]
[377612941,1754453720921,-50.02132939,0.00017566,2]
[377612942,1754453723114,-343.52021316,0.00017566,2]
[377612943,1754453726678,-129.13571903,0.00017566,2]
[377612944,1754453726703,-61.83946451,0.00017566,2]
[377612945,1754453791634,-210.17942476,0.00017466,2]
[377612946,1754453802064,-272.08671002,0.00017466,2]
[377612947,1754453805304,-191.48416369,0.00017466,2]
[377612948,1754453812431,-170.93,0.00017466,2]
[377612949,1754453814537,-292.25653412,0.00017466,2]
[377612950,1754453817456,-243.34845161,0.00017466,2]
[377612951,1754453819630,-131.02540605,0.00017466,2]
[377612952,1754453819654,-167.51124169,0.00017466,2]
[377612953,1754453822793,-165.85836653,0.00017466,2]
[377612954,1754453825233,-209.01745617,0.00017466,2]
[377612955,1754453827069,-281.03965652,0.00017466,2]
[377612956,1754453830038,-147.32327909,0.00017466,2]
[377612958,1754454304907,369.0,0.00023,30]
[377612959,1754454486515,-191.42817716,0.00017464,2]
[377612960,1754454486538,-38.9805985,0.00017514,2]
[377612961,1754454490732,-211.0194015,0.00017514,2]
[377612967,1754454581578,244.15,0.00013699,2]
[377612975,1754454631800,-1200.0,0.00017564,2]
[377612976,1754454631809,-1200.0,0.00017565,2]
[377612977,1754454631819,-300.0,0.00017565,2]
[377612978,1754454631828,-300.0,0.00017565,2]
[377612979,1754454631838,-1938.16053549,0.00017566,2]
[377612980,1754454631848,-317.68,0.00017566,2]
[377612981,1754454631857,-151.0,0.00017566,2]
[377612982,1754454631867,-291.93416883,0.00017566,2]
[377612983,1754454631876,-250.0,0.00017866,2]
[377612984,1754454631886,-156.94952813,0.000188,2]
[377612985,1754454631895,-300.0,0.00019174,2]
[377612986,1754454631905,-300.0,0.0001921,2]
[377612987,1754454631915,-250.0,0.0001921,2]
[377612988,1754454631924,-244.15,0.00020187,2]
[377612989,1754454631934,-191.42817715,0.00021255,2]
[377612990,1754454631944,-299.71939265,0.00021918,2]
[377612991,1754454631953,-637.6220891,0.00022633,2]
[377612992,1754454631963,-477.52317197,0.00023208,2]
[377612993,1754454631973,-249.0,0.00023985,2]
[377612994,1754454631983,-608.29482829,0.00023986,2]
[377612995,1754454631992,-154.29351669,0.00023986,2]
[377612996,1754454632001,-500.0,0.00023986,2]
[377612997,1754454632010,-151.0,0.00023986,2]
[377612998,1754454632020,-151.0,0.00023986,2]
[377612999,1754454632029,-151.0,0.00023986,2]
[377613000,1754454632039,-151.0,0.00023986,2]
[377613001,1754454632049,-500.0,0.00023986,2]
[377613002,1754454632058,-500.0,0.00023986,2]
[377613003,1754454632069,-151.0,0.00023986,2]
[377613004,1754454632080,-500.0,0.00023986,2]
[377613005,1754454632090,-151.0,0.00023986,2]
[377613006,1754454632099,-151.0,0.00023986,2]
[377613007,1754454632109,-500.0,0.00023986,2]
[377613008,1754454632119,-188.02945523,0.00023986,2]
[377613009,1754454632129,-500.0,0.00023986,2]
[377613010,1754454632141,-193.09047831,0.00023986,2]
[377613011,1754454632151,-600.0,0.00023986,2]
[377613012,1754454632162,-600.0,0.00023986,2]
[377613013,1754454632171,-600.0,0.00023986,2]
[377613014,1754454632180,-600.0,0.00023986,2]
[377613016,1754454632189,-600.0,0.00023986,2]
[377613018,1754454632199,-600.0,0.00023986,2]
[377613020,1754454632209,-600.0,0.00023986,2]
[377613022,1754454632218,-600.0,0.00023986,2]
[377613024,1754454632227,-600.0,0.00023986,2]
[377613026,1754454632236,-600.0,0.00023986,2]
[377613028,1754454632246,-600.0,0.00023986,2]
[377613029,1754454632256,-57306.51157943,0.00024,2]
[377613030,1754454632266,-1353.93205036,0.00025,7]
[377613031,1754454632275,-191.42817715,0.00025046,2]
[377613032,1754454632285,-364.03,0.00025146,2]
[377613033,1754454632295,-457.43778519,0.00026077,2]
[377613034,1754454632307,-256.7,0.00026109,2]
[377613035,1754454632316,-26826.05953434,0.000264,2]
[377613036,1754454632325,-958.0,0.000266,3]
[377613037,1754454632334,-244.15,0.00026676,2]
[377613038,1754454632343,-364.03,0.00026876,2]
[377613039,1754454632353,-254.0,0.0002715,2]
[377613040,1754454632362,-5511.0,0.000272,5]
[377613041,1754454632372,-250.0,0.00027293,2]
[377613042,1754454632383,-23900.0,0.00027332,2]
[377613043,1754454632392,-9572.17,0.00027336,2]
[377613044,1754454632401,-190.28,0.00028461,2]
[377613045,1754454632411,-364.03,0.00028607,2]
[377613046,1754454632420,-1078.49,0.00028864,2]
[377613047,1754454632430,-962.46,0.00028923,2]
[377613048,1754454632439,-166.91,0.00029231,2]
[377613049,1754454632448,-1000.0,0.00029505,2]
[377613050,1754454632461,-307.39,0.00029549,2]
[377613051,1754454632474,-666.0,0.0002967,3]
[377613052,1754454632484,-608.26,0.00029735,2]
[377613053,1754454632493,-150.0,0.00030203,2]
[377613054,1754454632503,-150.0,0.00030222,2]
[377613055,1754454632513,-408.4,0.00030326,120]
[377613056,1754454632522,-364.03,0.00030337,2]
[377613057,1754454632532,-175.0,0.00030339,7]
[377613058,1754454632542,-31489.0,0.0003041,2]
[377613059,1754454632552,-152.0,0.00030423,3]
[377613060,1754454632561,-250.0,0.00030694,2]
[377613061,1754454632570,-250.0,0.00030694,2]
[377613062,1754454632579,-250.0,0.00030694,2]
[377613063,1754454632589,-250.0,0.00030694,2]
[377613064,1754454632599,-250.0,0.00030694,2]
[377613065,1754454632610,-250.0,0.00030694,2]
[377613066,1754454632620,-250.0,0.00030694,2]
[377613067,1754454632631,-250.0,0.00030694,2]
[377613068,1754454632640,-500.0,0.00030694,2]
[377613069,1754454632650,-500.0,0.00030694,2]
[377613070,1754454632660,-500.0,0.00030694,2]
[377613071,1754454632673,-500.0,0.00030694,2]
[377613072,1754454632683,-500.0,0.00030694,2]
[377613073,1754454632693,-500.0,0.00030694,2]
[377613074,1754454632703,-500.0,0.00030694,2]
[377613075,1754454632714,-500.0,0.00030694,2]
[377613076,1754454632725,-500.0,0.00030694,2]
[377613077,1754454632735,-500.0,0.00030762,2]
[377613078,1754454632745,-500.0,0.00030762,2]
[377613079,1754454632755,-500.0,0.00030762,2]
[377613080,1754454632767,-500.0,0.00030762,2]
[377613081,1754454632782,-500.0,0.00030762,2]
[377613082,1754454632793,-500.0,0.00030762,2]
[377613083,1754454632802,-500.0,0.00030762,2]
[377613084,1754454632812,-500.0,0.00030762,2]
[377613085,1754454632821,-500.0,0.00030762,2]
[377613086,1754454632830,-500.0,0.00030762,2]
[377613087,1754454632839,-500.0,0.00030762,2]
[377613088,1754454632849,-500.0,0.00030762,2]
[377613089,1754454632858,-464.08907254,0.00030762,2]
[377613090,1754454632867,-500.0,0.00030762,2]
[377613091,1754454632876,-500.0,0.00030762,2]
[377613092,1754454632885,-500.0,0.00030762,2]
[377613093,1754454632895,-500.0,0.00030762,2]
[377613094,1754454632904,-500.0,0.00030762,2]
[377613095,1754454632914,-500.0,0.00030762,2]
[377613096,1754454632923,-500.0,0.00030762,2]
[377613097,1754454632933,-500.0,0.00030762,2]
[377613098,1754454632943,-500.0,0.00030762,2]
[377613099,1754454632951,-500.0,0.00030762,2]
[377613100,1754454632961,-500.0,0.00030762,2]
[377613101,1754454632971,-500.0,0.00030762,2]
[377613102,1754454632980,-500.0,0.00030762,2]
[377613103,1754454632989,-500.0,0.00030762,2]
[377613104,1754454632998,-500.0,0.00030762,2]
[377613105,1754454633008,-500.0,0.00030762,2]
[377613106,1754454633018,-500.0,0.00030762,2]
[377613107,1754454633027,-500.0,0.00030762,2]
[377613108,1754454633037,-500.0,0.00030762,2]
[377613109,1754454633047,-500.0,0.00030762,2]
[377613110,1754454633056,-500.0,0.00030762,2]
[377613111,1754454633066,-500.0,0.00030762,2]
[377613112,1754454633076,-500.0,0.00030762,2]
[377613113,1754454633086,-485.7677137,0.00030762,2]
[377613114,1754454633096,-500.0,0.00030762,2]
[377613115,1754454633105,-500.0,0.00030762,2]
[377613116,1754454633115,-500.0,0.00030762,2]
[377613117,1754454633124,-500.0,0.00030762,2]
[377613118,1754454633133,-500.0,0.00030762,2]
[377613119,1754454633143,-500.0,0.00030762,2]
[377613120,1754454633153,-500.0,0.00030762,2]
[377613121,1754454633164,-500.0,0.00030762,2]
[377613122,1754454633174,-500.0,0.00030762,2]
[377613123,1754454633184,-500.0,0.00030762,2]
[377613124,1754454633193,-500.0,0.00030762,2]
[377613125,1754454633204,-249.99999999,0.00030762,2]
[377613126,1754454633214,-1599.29,0.00030763,2]
[377613127,1754454633223,-398.34,0.00030853,2]
[377613128,1754454633233,-1564.74,0.00030927,2]
[377613129,1754454633243,-804.3,0.0003095,2]
[377613130,1754454633252,-223.56,0.00031119,120]
[377613131,1754454633262,-407.22428879,0.0003121,2]
[377613132,1754454633271,-200.0,0.00031372,2]
[377613133,1754454633281,-150.99,0.00031426,2]
[377613134,1754454633291,-9999.99,0.00031426,2]
[377613135,1754454633300,-3474.13,0.00031426,2]
[377613136,1754454633309,-999.99,0.00031426,2]
[377613137,1754454633319,-299.99,0.00031426,12]
[377613138,1754454633328,-9999.99,0.00031426,2]
[377613139,1754454633337,-13619.03,0.00031426,2]
[377613140,1754454633347,-497.51483167,0.00031608,2]
[377613141,1754454633356,-154.58080982,0.0003171,2]
[377613142,1754454633366,-364.03,0.00032067,2]
[377613143,1754454633376,-211.52696026,0.00032124,2]
[377613144,1754454633385,-842.03384774,0.00032124,2]
[377613145,1754454633395,-1889.9813939,0.00032132,2]
[377613146,1754454633404,-1930.743,0.00032198,31]
[377613147,1754454633414,-177.723,0.00032198,31]
[377613148,1754454633423,-150.0,0.00032523,4]
[377613149,1754454633434,-150.0,0.00032523,4]
[377613150,1754454633443,-150.0,0.00032523,4]
[377613151,1754454633452,-150.0,0.00032523,4]
[377613152,1754454633461,-150.0,0.00032523,4]
[377613153,1754454633471,-150.0,0.00032523,4]
[377613154,1754454633481,-150.0,0.00032523,4]
[377613155,1754454633493,-150.0,0.00032523,4]
[377613156,1754454633502,-150.0,0.00032523,4]
[377613157,1754454633512,-308.55426743,0.00032547,58]
[377613158,1754454633522,-1889.98139383,0.00032569,2]
[377613159,1754454633531,-152.0,0.00032655,4]
[377613160,1754454633541,-532.94,0.00032904,30]
[377613161,1754454633551,-1889.98139383,0.00033006,2]
[377613162,1754454633564,-154.58080982,0.0003307,2]
[377613163,1754454633583,-150.0,0.00033126,7]
[377613164,1754454633594,-244.15,0.00033165,2]
[377613165,1754454633604,-1000.0,0.00033193,2]
[377613166,1754454633614,-379.0,0.000332,2]
[377613167,1754454633623,-783.0,0.000332,2]
[377613168,1754454633633,-240.0,0.000332,2]
[377613169,1754454633643,-159.38,0.00033264,2]
[377613170,1754454633652,-165.99,0.0003332,2]
[377613171,1754454633662,-1889.98139383,0.00033443,2]
[377613172,1754454633674,-1118.052,0.0003345,2]
[377613173,1754454633683,-564.0,0.0003345,2]
[377613174,1754454633692,-1149.664,0.0003345,2]
[377613175,1754454633702,-958.0,0.0003345,2]
[377613176,1754454633711,-597.0,0.0003345,2]
[377613177,1754454633720,-1170.0,0.0003345,2]
[377613178,1754454633729,-905.085,0.0003345,2]
[377613179,1754454633738,-1252.0,0.0003345,2]
[377613180,1754454633748,-6130.915,0.0003345,2]
[377613181,1754454633757,-508.0,0.00033503,2]
[377613182,1754454633766,-1000.0,0.0003366,2]
[377613183,1754454633775,-150.0,0.00033728,7]
[377613184,1754454633785,-364.03,0.00033798,2]
[377613185,1754454633794,-1889.98139383,0.0003388,2]
[377613186,1754454633803,-1889.98139383,0.00034316,2]
[377613187,1754454633813,-150.0,0.0003433,7]
[377613188,1754454633822,-154.58080982,0.0003443,2]
[377613189,1754454633832,-1000.0,0.00034631,2]
[377613190,1754454633841,-4001.9474,0.000347,2]
[377613191,1754454633850,-230.3407,0.000347,2]
[377613192,1754454633859,-1889.98139383,0.00034753,2]
[377613193,1754454633868,-2000.0,0.000348,2]
[377613194,1754454633878,-467.06,0.00034884,2]